[Event "Kadettallsvenskan 2018, sodra kvalet"]
[Site "Vegagatan 20, Gothenburg, Sweden"]
[Date "2018.04.15"]
[Round "5.3"]
[White "Ben Saeid, Aria"]
[Black "Torngren, Gustav"]
[Result "0-1"]
[TimeControl "45 minutes for the whole game + 10 seconds per move from move one."]
[WhiteFideId "1741691"]
[BlackFideId "1728970"]
[WhiteElo "1693"]
[BlackElo "1906"]

1. d4 {[%clk 00:45:16]} {[%emt 00:00:03]} Nf6 {[%clk 00:45:07]} {[%emt
00:00:13]} 2. c4 {[%clk 00:45:22]} {[%emt 00:00:04]} e6 {[%clk 00:45:03]}
{[%emt 00:00:13]} 3. Nc3 {[%clk 00:45:26]} {[%emt 00:00:06]} c5 {[%clk
00:45:10]} {[%emt 00:00:03]} 4. d5 {[%clk 00:45:19]} {[%emt 00:00:17]} exd5
{[%clk 00:45:11]} {[%emt 00:00:10]} 5. cxd5 {[%clk 00:45:22]} {[%emt 00:00:06]}
d6 {[%clk 00:45:13]} {[%emt 00:00:08]} 6. e4 {[%clk 00:45:28]} {[%emt
00:00:05]} g6 {[%clk 00:45:19]} {[%emt 00:00:04]} 7. f3 {[%clk 00:45:27]}
{[%emt 00:00:10]} Bg7 {[%clk 00:45:22]} {[%emt 00:00:07]} 8. Bg5 {[%clk
00:45:11]} {[%emt 00:00:26]} h6 {[%clk 00:45:27]} {[%emt 00:00:05]} 9. Be3
{[%clk 00:45:09]} {[%emt 00:00:11]} Na6 {[%clk 00:45:18]} {[%emt 00:00:20]} 10.
Nge2 {[%clk 00:44:32]} {[%emt 00:00:47]} Nc7 {[%clk 00:44:55]} {[%emt
00:00:33]} 11. Ng3 {[%clk 00:44:36]} {[%emt 00:00:07]} O-O {[%clk 00:44:11]}
{[%emt 00:00:54]} 12. Qd2 {[%clk 00:44:28]} {[%emt 00:00:18]} Kh7 {[%clk
00:44:01]} {[%emt 00:00:21]} 13. Be2 {[%clk 00:44:15]} {[%emt 00:00:23]} a6
{[%clk 00:43:49]} {[%emt 00:00:22]} 14. a4 {[%clk 00:43:42]} {[%emt 00:00:43]}
b6 {[%clk 00:43:58]} {[%emt 00:00:02]} 15. O-O {[%clk 00:43:31]} {[%emt
00:00:20]} Rb8 {[%clk 00:43:59]} {[%emt 00:00:08]} 16. Rab1 {[%clk 00:39:14]}
{[%emt 00:04:28]} b5 {[%clk 00:42:59]} {[%emt 00:01:09]} 17. axb5 {[%clk
00:38:52]} {[%emt 00:00:33]} Nxb5 {[%clk 00:42:48]} {[%emt 00:00:21]} 18. Bxb5
{[%clk 00:38:36]} {[%emt 00:00:26]} axb5 {[%clk 00:42:57]} 19. b4 {[%clk
00:38:36]} {[%emt 00:00:09]} c4 {[%clk 00:40:08]} {[%emt 00:03:00]} 20. f4
{[%clk 00:38:00]} {[%emt 00:00:47]} Ng4 {[%clk 00:39:04]} {[%emt 00:01:14]} 21.
h3 {[%clk 00:34:17]} {[%emt 00:03:53]} Nxe3 {[%clk 00:37:23]} {[%emt 00:01:51]}
22. Qxe3 {[%clk 00:34:25]} {[%emt 00:00:02]} Qb6 {[%clk 00:36:57]} {[%emt
00:00:35]} 23. Qxb6 {[%clk 00:34:06]} {[%emt 00:00:29]} Rxb6 {[%clk 00:37:05]}
{[%emt 00:00:01]} 24. Nge2 {[%clk 00:31:44]} {[%emt 00:02:32]} f5 {[%clk
00:37:07]} {[%emt 00:00:08]} 25. Rbd1 {[%clk 00:27:24]} {[%emt 00:04:31]} Re8
{[%clk 00:36:10]} {[%emt 00:01:07]} 26. Nd4 {[%clk 00:25:19]} {[%emt 00:02:15]}
fxe4 {[%clk 00:33:35]} {[%emt 00:02:45]} 27. Ncxb5 {[%clk 00:23:32]} {[%emt
00:01:58]} e3 {[%clk 00:22:32]} {[%emt 00:11:14]} 28. Rfe1 {[%clk 00:22:16]}
{[%emt 00:01:26]} Bxd4 {[%clk 00:22:00]} {[%emt 00:00:41]} 29. Nxd4 {[%clk
00:22:08]} {[%emt 00:00:17]} Rxb4 {[%clk 00:21:51]} {[%emt 00:00:19]} 30. Nc2
{[%clk 00:21:35]} {[%emt 00:00:43]} Rb3 {[%clk 00:21:35]} {[%emt 00:00:25]} 31.
Rd4 {[%clk 00:21:20]} {[%emt 00:00:26]} Rc3 {[%clk 00:21:11]} {[%emt 00:00:34]}
32. Re2 {[%clk 00:18:38]} {[%emt 00:02:52]} Rxc2 {[%clk 00:19:53]} {[%emt
00:01:28]} 33. Rxc2 {[%clk 00:18:31]} {[%emt 00:00:16]} e2 {[%clk 00:20:01]}
{[%emt 00:00:03]} 34. Rxe2 {[%clk 00:18:11]} {[%emt 00:00:31]} Rxe2 {[%clk
00:20:10]} {[%emt 00:00:01]} 35. Rxc4 {[%clk 00:18:20]} {[%emt 00:00:01]} Bf5
{[%clk 00:19:10]} {[%emt 00:01:09]} 36. Rc6 {[%clk 00:18:08]} {[%emt 00:00:22]}
Be4 {[%clk 00:18:59]} {[%emt 00:00:21]} 37. Rxd6 {[%clk 00:17:52]} {[%emt
00:00:27]} Rxg2+ {[%clk 00:19:07]} {[%emt 00:00:02]} 38. Kf1 {[%clk 00:18:01]}
Rd2 {[%clk 00:19:05]} {[%emt 00:00:12]} 39. Rd7 {[%clk 00:18:10]} {[%emt
00:00:02]} Kg8 {[%clk 00:19:05]} {[%emt 00:00:10]} 40. d6 {[%clk 00:18:16]}
{[%emt 00:00:04]} Bf5 {[%clk 00:18:45]} {[%emt 00:00:30]} 41. Rd8+ {[%clk
00:18:18]} {[%emt 00:00:08]} Kf7 {[%clk 00:18:48]} {[%emt 00:00:07]} 42. Ke1
{[%clk 00:18:17]} {[%emt 00:00:11]} Rd5 {[%clk 00:18:29]} {[%emt 00:00:28]} 43.
Rh8 {[%clk 00:18:15]} {[%emt 00:00:12]} h5 {[%clk 00:18:21]} {[%emt 00:00:19]}
44. h4 {[%clk 00:18:12]} {[%emt 00:00:13]} Rxd6 {[%clk 00:18:12]} {[%emt
00:00:20]} 45. Kf2 {[%clk 00:18:20]} {[%emt 00:00:02]} Rd3 {[%clk 00:18:09]}
{[%emt 00:00:12]} 46. Rh7+ {[%clk 00:18:17]} {[%emt 00:00:13]} Kf6 {[%clk
00:18:14]} {[%emt 00:00:05]} 47. Rb7 {[%clk 00:18:25]} {[%emt 00:00:02]} Rh3
{[%clk 00:18:02]} {[%emt 00:00:22]} 48. Rb1 {[%clk 00:18:31]} {[%emt 00:00:03]}
Bxb1 {[%clk 00:18:08]} {[%emt 00:00:05]} 49. Ke1 {[%emt 00:00:11]} 0-1

[Event "Kadettallsvenskan 2018, sodra kvalet"]
[Site "Vegagatan 20, Gothenburg, Sweden"]
[Date "2018.04.15"]
[Round "5.4"]
[White "Henriques, Emil"]
[Black "Hattab, Nuhad"]
[Result "0-1"]
[TimeControl "45 minutes for the whole game + 10 seconds per move from move one."]
[WhiteFideId "1746995"]
[BlackFideId "1738992"]
[WhiteElo "1098"]
[BlackElo "1447"]

1. d4 {[%clk 00:45:12]} {[%emt 00:00:07]} d5 {[%clk 00:45:17]} {[%emt
00:00:13]} 2. Bf4 {[%clk 00:45:02]} {[%emt 00:00:20]} Nf6 {[%clk 00:45:10]}
{[%emt 00:00:18]} 3. e3 {[%clk 00:44:16]} {[%emt 00:01:01]} e6 {[%clk
00:44:57]} {[%emt 00:00:23]} 4. c3 {[%clk 00:43:42]} {[%emt 00:00:43]} h6
{[%clk 00:44:52]} {[%emt 00:00:16]} 5. h3 {[%clk 00:43:20]} {[%emt 00:00:30]}
g6 {[%clk 00:45:01]} {[%emt 00:00:03]} 6. Bd3 {[%clk 00:42:27]} {[%emt
00:01:03]} Bg7 {[%clk 00:45:08]} {[%emt 00:00:01]} 7. Nd2 {[%clk 00:40:57]}
{[%emt 00:01:40]} Nbd7 {[%clk 00:45:05]} {[%emt 00:00:13]} 8. Ngf3 {[%clk
00:40:15]} {[%emt 00:00:52]} O-O {[%clk 00:44:36]} {[%emt 00:00:39]} 9. O-O
{[%clk 00:37:39]} {[%emt 00:02:46]} Nh5 {[%clk 00:38:06]} {[%emt 00:06:40]} 10.
Bh2 {[%clk 00:37:14]} {[%emt 00:00:35]} f5 {[%clk 00:37:12]} {[%emt 00:01:05]}
11. Ne5 {[%clk 00:36:07]} {[%emt 00:01:17]} Nxe5 {[%clk 00:33:51]} {[%emt
00:03:30]} 12. dxe5 {[%clk 00:33:52]} {[%emt 00:02:25]} Bh8 {[%clk 00:30:11]}
{[%emt 00:03:50]} 13. Be2 {[%clk 00:28:09]} {[%emt 00:05:52]} Ng7 {[%clk
00:27:14]} {[%emt 00:03:07]} 14. Rc1 {[%clk 00:20:44]} {[%emt 00:07:35]} c6
{[%clk 00:20:58]} {[%emt 00:06:25]} 15. c4 {[%clk 00:17:27]} {[%emt 00:03:28]}
Qa5 {[%clk 00:19:23]} {[%emt 00:01:44]} 16. a3 {[%clk 00:14:12]} {[%emt
00:03:27]} Rd8 {[%clk 00:17:41]} {[%emt 00:01:50]} 17. b4 {[%clk 00:12:04]}
{[%emt 00:02:18]} Qxa3 {[%clk 00:14:04]} {[%emt 00:03:47]} 18. Qb3 {[%clk
00:08:09]} {[%emt 00:04:06]} Qxb3 {[%clk 00:12:56]} {[%emt 00:01:18]} 19. Nxb3
{[%clk 00:07:14]} {[%emt 00:01:06]} Bd7 {[%clk 00:11:22]} {[%emt 00:01:44]} 20.
Nc5 {[%clk 00:04:10]} {[%emt 00:03:14]} b6 {[%clk 00:08:24]} {[%emt 00:03:07]}
21. Nb7 {[%clk 00:04:18]} {[%emt 00:00:02]} Rdb8 {[%clk 00:08:24]} {[%emt
00:00:07]} 22. Nd6 {[%clk 00:04:24]} {[%emt 00:00:07]} Ne8 {[%clk 00:08:29]}
{[%emt 00:00:03]} 23. c5 {[%clk 00:04:09]} {[%emt 00:00:26]} bxc5 {[%clk
00:07:35]} {[%emt 00:01:03]} 24. bxc5 {[%clk 00:04:09]} {[%emt 00:00:11]} 0-1

[Event "Kadettallsvenskan 2018, sodra kvalet"]
[Site "Vegagatan 20, Gothenburg, Sweden"]
[Date "2018.04.15"]
[Round "5.5"]
[White "Nordin, Oscar"]
[Black "Torngren, Alexander"]
[Result "1-0"]
[TimeControl "45 minutes for the whole game + 10 seconds per move from move one."]
[WhiteFideId "1742302"]
[BlackFideId "1728962"]
[WhiteElo "1359"]
[BlackElo "1214"]

1. c4 {[%clk 00:45:18]} {[%emt 00:00:01]} e5 {[%clk 00:45:17]} {[%emt
00:00:03]} 2. Nc3 {[%clk 00:45:25]} {[%emt 00:00:02]} Nc6 {[%clk 00:45:24]}
{[%emt 00:00:03]} 3. Nf3 {[%clk 00:45:34]} {[%emt 00:00:01]} Nf6 {[%clk
00:45:16]} {[%emt 00:00:18]} 4. g3 {[%clk 00:45:43]} {[%emt 00:00:02]} Bc5
{[%clk 00:45:08]} {[%emt 00:00:41]} 5. Bg2 {[%clk 00:45:43]} {[%emt 00:00:07]}
O-O {[%clk 00:44:28]} {[%emt 00:00:49]} 6. O-O {[%clk 00:45:50]} {[%emt
00:00:04]} Re8 {[%clk 00:44:12]} {[%emt 00:00:25]} 7. d3 {[%clk 00:45:57]}
{[%emt 00:00:03]} h6 {[%clk 00:44:17]} {[%emt 00:00:06]} 8. Be3 {[%clk
00:45:53]} {[%emt 00:00:14]} Bd4 {[%clk 00:40:06]} {[%emt 00:04:21]} 9. Bxd4
{[%clk 00:45:42]} {[%emt 00:00:21]} Nxd4 {[%clk 00:39:41]} {[%emt 00:00:34]} 10.
e3 {[%clk 00:45:15]} {[%emt 00:00:37]} Nxf3+ {[%clk 00:38:09]} {[%emt
00:01:42]} 11. Bxf3 {[%clk 00:45:24]} {[%emt 00:00:02]} c6 {[%clk 00:38:00]}
{[%emt 00:00:17]} 12. d4 {[%clk 00:45:11]} {[%emt 00:00:24]} e4 {[%clk
00:37:50]} {[%emt 00:00:21]} 13. Bg2 {[%clk 00:45:14]} {[%emt 00:00:07]} d5
{[%clk 00:37:51]} {[%emt 00:00:09]} 14. cxd5 {[%clk 00:45:08]} {[%emt
00:00:15]} cxd5 {[%clk 00:37:53]} {[%emt 00:00:08]} 15. f3 {[%clk 00:45:10]}
{[%emt 00:00:09]} a6 {[%clk 00:36:29]} {[%emt 00:01:34]} 16. fxe4 {[%clk
00:45:13]} {[%emt 00:00:06]} dxe4 {[%clk 00:36:26]} {[%emt 00:00:12]} 17. Rf4
{[%clk 00:45:10]} {[%emt 00:00:14]} Qb6 {[%clk 00:35:54]} {[%emt 00:00:43]} 18.
Qb3 {[%clk 00:44:15]} {[%emt 00:01:04]} Qxb3 {[%clk 00:29:30]} {[%emt
00:06:34]} 19. axb3 {[%clk 00:44:22]} {[%emt 00:00:03]} Be6 {[%clk 00:29:36]}
{[%emt 00:00:04]} 20. Nxe4 {[%clk 00:43:41]} {[%emt 00:00:51]} Nxe4 {[%clk
00:24:51]} {[%emt 00:04:55]} 21. Bxe4 {[%clk 00:43:46]} {[%emt 00:00:04]} Rab8
{[%clk 00:24:05]} {[%emt 00:00:47]} 22. b4 {[%clk 00:43:49]} {[%emt 00:00:16]}
Red8 {[%clk 00:23:43]} {[%emt 00:00:26]} 23. Rc1 {[%clk 00:43:47]} {[%emt
00:00:18]} Rd7 {[%clk 00:22:55]} {[%emt 00:00:58]} 24. Rf2 {[%clk 00:43:18]}
{[%emt 00:00:38]} b5 {[%clk 00:22:45]} {[%emt 00:00:16]} 25. Rfc2 {[%clk
00:43:20]} {[%emt 00:00:12]} Bc4 {[%clk 00:22:06]} {[%emt 00:00:50]} 26. b3
{[%clk 00:43:14]} {[%emt 00:00:17]} Bxb3 {[%clk 00:22:12]} {[%emt 00:00:04]} 27.
Rc8+ {[%clk 00:43:21]} {[%emt 00:00:02]} Rd8 {[%emt 00:00:29]} 1-0

[Event "Kadettallsvenskan 2018, sodra kvalet"]
[Site "Vegagatan 20, Gothenburg, Sweden"]
[Date "2018.04.15"]
[Round "5.6"]
[White "Bensryd, Hampus"]
[Black "Nabbing, Oscar"]
[Result "1-0"]
[TimeControl "45 minutes for the whole game + 10 seconds per move from move one."]
[WhiteFideId "1738330"]
[BlackFideId "1738313"]
[WhiteElo "1918"]
[BlackElo "1456"]

1. e4 {[%clk 00:43:17]} {[%emt 00:02:03]} e6 {[%clk 00:45:04]} {[%emt
00:00:16]} 2. d3 {[%clk 00:43:13]} {[%emt 00:00:12]} d5 {[%clk 00:42:37]}
{[%emt 00:02:38]} 3. Nd2 {[%clk 00:43:07]} {[%emt 00:00:16]} Nf6 {[%clk
00:39:45]} {[%emt 00:03:02]} 4. Ngf3 {[%clk 00:43:02]} {[%emt 00:00:15]} Nc6
{[%clk 00:35:27]} {[%emt 00:04:27]} 5. g3 {[%clk 00:42:19]} {[%emt 00:00:54]}
dxe4 {[%clk 00:32:11]} {[%emt 00:03:26]} 6. dxe4 {[%clk 00:42:04]} {[%emt
00:00:25]} e5 {[%clk 00:32:05]} {[%emt 00:00:16]} 7. Bg2 {[%clk 00:41:41]}
{[%emt 00:00:34]} Bg4 {[%clk 00:30:33]} {[%emt 00:01:42]} 8. h3 {[%clk
00:39:54]} {[%emt 00:01:57]} Be6 {[%clk 00:28:26]} {[%emt 00:02:16]} 9. O-O
{[%clk 00:39:34]} {[%emt 00:00:30]} Bc5 {[%clk 00:26:21]} {[%emt 00:02:15]} 10.
Qe2 {[%clk 00:38:08]} {[%emt 00:01:36]} Qd7 {[%clk 00:24:45]} {[%emt 00:01:46]}
11. Kh2 {[%clk 00:36:54]} {[%emt 00:01:25]} h6 {[%clk 00:22:43]} {[%emt
00:02:12]} 12. Nc4 {[%clk 00:35:53]} {[%emt 00:01:11]} Bxc4 {[%clk 00:19:27]}
{[%emt 00:03:26]} 13. Qxc4 {[%clk 00:35:58]} {[%emt 00:00:05]} Bd6 {[%clk
00:18:38]} {[%emt 00:00:59]} 14. Be3 {[%clk 00:35:08]} {[%emt 00:01:00]} g5
{[%clk 00:17:05]} {[%emt 00:01:44]} 15. Rad1 {[%clk 00:33:49]} {[%emt
00:01:30]} g4 {[%clk 00:16:34]} {[%emt 00:00:41]} 16. Nh4 {[%clk 00:33:50]}
{[%emt 00:00:08]} Ne7 {[%clk 00:11:33]} {[%emt 00:05:11]} 17. Qe2 {[%clk
00:31:52]} {[%emt 00:02:08]} h5 {[%clk 00:10:58]} {[%emt 00:00:45]} 18. Bg5
{[%clk 00:31:45]} {[%emt 00:00:17]} Nh7 {[%clk 00:09:37]} {[%emt 00:01:31]} 19.
Bxe7 {[%clk 00:31:11]} {[%emt 00:00:43]} Kxe7 {[%clk 00:08:48]} {[%emt
00:00:59]} 20. Nf5+ {[%clk 00:30:33]} {[%emt 00:00:49]} Kf8 {[%clk 00:08:35]}
{[%emt 00:00:22]} 21. Qd2 {[%clk 00:29:16]} {[%emt 00:01:28]} Rd8 {[%clk
00:08:19]} {[%emt 00:00:25]} 22. Qh6+ {[%clk 00:28:56]} {[%emt 00:00:30]} Kg8
{[%clk 00:07:40]} {[%emt 00:00:49]} 23. Qg7# {[%clk 00:28:53]} {[%emt
00:00:12]} 1-0

[Event "Kadettallsvenskan 2018, sodra kvalet"]
[Site "Vegagatan 20, Gothenburg, Sweden"]
[Date "2018.04.15"]
[Round "5.7"]
[White "Nilsson, Kajsa"]
[Black "Nord, Alexander"]
[Result "0-1"]
[TimeControl "45 minutes for the whole game + 10 seconds per move from move one."]
[WhiteFideId "1725157"]
[BlackFideId "1738135"]
[WhiteElo "1693"]
[BlackElo "1763"]

1. e4 {[%clk 00:45:16]} {[%emt 00:00:04]} e6 {[%clk 00:45:17]} {[%emt
00:00:03]} 2. d4 {[%clk 00:45:17]} {[%emt 00:00:08]} d5 {[%clk 00:45:24]}
{[%emt 00:00:03]} 3. Nd2 {[%clk 00:45:04]} {[%emt 00:00:23]} c5 {[%clk
00:45:15]} {[%emt 00:00:20]} 4. exd5 {[%clk 00:44:39]} {[%emt 00:00:35]} Qxd5
{[%clk 00:44:25]} {[%emt 00:01:00]} 5. Ngf3 {[%clk 00:43:56]} {[%emt 00:00:53]}
cxd4 {[%clk 00:42:12]} {[%emt 00:02:23]} 6. Bc4 {[%clk 00:43:05]} {[%emt
00:01:02]} Qc5 {[%clk 00:40:43]} {[%emt 00:01:38]} 7. Qe2 {[%clk 00:41:09]}
{[%emt 00:02:06]} Nc6 {[%clk 00:39:21]} {[%emt 00:01:32]} 8. Nb3 {[%clk
00:37:47]} {[%emt 00:03:33]} Qb6 {[%clk 00:37:26]} {[%emt 00:02:04]} 9. O-O
{[%clk 00:36:44]} {[%emt 00:01:14]} Nf6 {[%clk 00:35:46]} {[%emt 00:01:50]} 10.
Bd2 {[%clk 00:32:30]} {[%emt 00:04:24]} a6 {[%clk 00:31:40]} {[%emt 00:04:17]}
11. Rad1 {[%clk 00:30:48]} {[%emt 00:01:51]} Bc5 {[%clk 00:29:28]} {[%emt
00:02:22]} 12. Bg5 {[%clk 00:28:36]} {[%emt 00:02:22]} h6 {[%clk 00:27:10]}
{[%emt 00:02:28]} 13. Bh4 {[%clk 00:28:27]} {[%emt 00:00:19]} Bd7 {[%clk
00:24:56]} {[%emt 00:02:24]} 14. Ne5 {[%clk 00:27:02]} {[%emt 00:01:36]} Bd6
{[%clk 00:14:55]} {[%emt 00:10:11]} 15. Nxc6 {[%clk 00:24:08]} {[%emt
00:03:04]} Qxc6 {[%clk 00:12:13]} {[%emt 00:02:52]} 16. Rxd4 {[%clk 00:23:32]}
{[%emt 00:00:46]} Qc7 {[%clk 00:11:33]} {[%emt 00:00:51]} 17. Bxf6 {[%clk
00:21:13]} {[%emt 00:02:29]} gxf6 {[%clk 00:11:02]} {[%emt 00:00:41]} 18. Rfd1
{[%clk 00:21:07]} {[%emt 00:00:16]} Bxh2+ {[%clk 00:09:02]} {[%emt 00:02:10]}
19. Kh1 {[%clk 00:19:32]} {[%emt 00:01:45]} Bc6 {[%clk 00:08:35]} {[%emt
00:00:37]} 20. Rh4 {[%clk 00:18:50]} {[%emt 00:00:52]} Be5 {[%clk 00:07:08]}
{[%emt 00:01:36]} 21. Nd4 {[%clk 00:16:25]} {[%emt 00:02:36]} Rg8 {[%clk
00:06:21]} {[%emt 00:00:57]} 22. Nxc6 {[%clk 00:15:56]} {[%emt 00:00:40]} Qxc6
{[%clk 00:06:27]} {[%emt 00:00:04]} 23. Rg4 {[%clk 00:15:47]} {[%emt 00:00:19]}
Ke7 {[%clk 00:05:41]} {[%emt 00:00:55]} 24. c3 {[%clk 00:13:12]} {[%emt
00:02:45]} h5 {[%clk 00:05:15]} {[%emt 00:00:36]} 25. Rxg8 {[%clk 00:13:10]}
{[%emt 00:00:12]} Rxg8 {[%clk 00:05:24]} {[%emt 00:00:01]} 26. f3 {[%clk
00:13:15]} {[%emt 00:00:04]} h4 {[%clk 00:05:15]} {[%emt 00:00:20]} 27. Bd3
{[%clk 00:10:18]} {[%emt 00:03:07]} 0-1

[Event "Kadettallsvenskan 2018, sodra kvalet"]
[Site "Vegagatan 20, Gothenburg, Sweden"]
[Date "2018.04.15"]
[Round "5.8"]
[White "Morell, Ludvig"]
[Black "Olofsson, Klara"]
[Result "1-0"]
[TimeControl "45 minutes for the whole game + 10 seconds per move from move one."]
[WhiteFideId "1736779"]
[BlackFideId "1745182"]
[WhiteElo "1517"]
[BlackElo "1221"]

1. e4 {[%clk 00:45:18]} {[%emt 00:00:02]} c5 {[%clk 00:45:14]} {[%emt
00:00:06]} 2. Nf3 {[%clk 00:45:27]} {[%emt 00:00:02]} Nc6 {[%clk 00:45:14]}
{[%emt 00:00:10]} 3. d4 {[%clk 00:45:36]} {[%emt 00:00:01]} cxd4 {[%clk
00:45:12]} {[%emt 00:00:12]} 4. Nxd4 {[%clk 00:45:43]} {[%emt 00:00:02]} Nf6
{[%clk 00:45:11]} {[%emt 00:00:11]} 5. Nc3 {[%clk 00:45:49]} {[%emt 00:00:03]}
e5 {[%clk 00:45:09]} {[%emt 00:00:13]} 6. Ndb5 {[%clk 00:45:55]} {[%emt
00:00:04]} d6 {[%clk 00:45:06]} {[%emt 00:00:13]} 7. Bg5 {[%clk 00:46:03]}
{[%emt 00:00:03]} Be7 {[%clk 00:44:36]} {[%emt 00:00:39]} 8. Bxf6 {[%clk
00:45:23]} {[%emt 00:00:51]} gxf6 {[%clk 00:43:58]} {[%emt 00:00:48]} 9. Nd5
{[%clk 00:45:27]} {[%emt 00:00:05]} Qa5+ {[%clk 00:41:44]} {[%emt 00:02:21]} 10.
c3 {[%clk 00:41:01]} {[%emt 00:04:39]} Bd8 {[%clk 00:38:45]} {[%emt 00:03:09]}
11. Nxd6+ {[%clk 00:40:30]} {[%emt 00:00:41]} Kf8 {[%clk 00:31:24]} {[%emt
00:07:31]} 12. Qh5 {[%clk 00:39:34]} {[%emt 00:01:04]} Be6 {[%clk 00:31:15]}
{[%emt 00:00:21]} 13. Qh6+ {[%clk 00:39:11]} {[%emt 00:00:33]} Kg8 {[%clk
00:30:55]} {[%emt 00:00:30]} 14. Ne8 {[%clk 00:39:03]} {[%emt 00:00:18]} Qxc3+
{[%clk 00:28:43]} {[%emt 00:02:22]} 15. bxc3 {[%clk 00:39:09]} {[%emt
00:00:03]} Ba5 {[%clk 00:28:37]} {[%emt 00:00:16]} 16. Qg7# {[%clk 00:39:16]}
{[%emt 00:00:03]} 1-0